bitfinex/quotes_SOLUSD_20220103
["timestamp","ask_amount","ask_price","bid_price","bid_amount"]
[1641219747517,8.5816,174.83,174.75,1.68669368]
[1641219747718,11.54504648,174.83,174.76,8.5813]
[1641219748119,11.54504648,174.83,174.76,8.8413]
[1641219756653,28.6038,174.88,174.76,16.1753]
[1641219756654,8.5811,174.84,174.76,16.1753]
[1641219756856,28.6038,174.88,174.76,16.1753]
[1641219757156,83.7340621,174.89,174.78,8.5804]
[1641219757356,0.5,174.88,174.78,8.5804]
[1641219757556,0.5,174.88,174.78,8.8404]
[1641219757758,2.95663049,174.87,174.78,11.06601139]
[1641219758154,3.21663049,174.87,174.78,11.06601139]
[1641219758558,8.5805,174.85,174.78,11.06601139]
[1641219760360,8.58,174.86,174.78,11.06601139]
[1641219760960,2.95663049,174.87,174.78,11.06601139]
[1641219762463,11.53613049,174.87,174.78,11.06601139]
[1641219763064,11.53613049,174.87,174.78,17.90101139]
[1641219763670,2.95663049,174.87,174.78,17.90101139]
[1641219765063,2.95663049,174.87,174.78,19.17031139]
[1641219765465,102.5781,174.9,174.78,19.17031139]
[1641219765865,94.0,174.9,174.78,19.17031139]
[1641219766167,94.0,174.9,174.79,9.52669368]
[1641219766365,3.01916814,174.89,174.84,8.5773]
[1641219766565,3.01916814,174.89,174.84,8.8373]
[1641219766766,3.01916814,174.89,174.84,11.55178294]
[1641219768267,3.01916814,174.89,174.84,8.8373]
[1641219772273,8.5772,174.92,174.84,8.8373]
[1641219772480,8.5766,174.94,174.84,8.8373]
[1641219772678,8.5766,174.94,174.85,1.2855]
[1641219772873,8.5766,174.94,174.87,8.5758]
[1641219773074,78.5722621,174.97,174.87,8.8358]
[1641219773275,2.41278987,174.96,174.87,8.8358]
[1641219773474,2.91278987,174.96,174.87,8.8358]
[1641219773874,9.8063,174.95,174.87,8.8358]
[1641219774275,10.3063,174.95,174.87,8.8358]
[1641219774778,9.8063,174.95,174.87,8.8358]
[1641219774982,10.3063,174.95,174.87,8.8358]
[1641219777080,9.8063,174.95,174.87,8.5758]
[1641219777289,10.0663,174.95,174.87,8.5758]
[1641219778479,8.5761,174.95,174.87,8.8358]
[1641219778908,3.64618987,174.96,174.87,8.8358]
[1641219780105,3.64618987,174.96,174.88,2.84499589]
[1641219780306,2.41278987,174.96,174.88,2.84499589]
[1641219780505,2.41278987,174.96,174.88,3.10499589]
[1641219780705,2.41278987,174.96,174.88,0.26]
[1641219781106,2.41278987,174.96,174.86,1.4871]
[1641219781508,2.41278987,174.96,174.9,8.5744]
[1641219781906,2.41278987,174.96,174.9,8.8344]
[1641219791019,2.41278987,174.96,174.9,8.5744]
[1641219791817,2.41278987,174.96,174.89,8.5751]
[1641219793018,2.41278987,174.96,174.89,8.8351]
[1641219793418,10.98788987,174.96,174.89,8.8351]
[1641219793627,10.98788987,174.96,174.89,0.26]
[1641219794019,10.98788987,174.96,174.88,10.0893]
[1641219794419,12.26988987,174.96,174.88,10.0893]
[1641219797348,3.69478987,174.96,174.88,10.0893]
[1641219797522,2.41278987,174.96,174.88,10.0893]
[1641219807164,3.69428987,174.96,174.88,10.0893]
[1641219809965,3.69428987,174.96,174.88,9.8293]
[1641219811366,3.69428987,174.96,174.88,10.0893]
[1641219814769,3.69428987,174.96,174.88,9.8293]
[1641219814974,3.95428987,174.96,174.88,8.5755]
[1641219815170,3.95428987,174.96,174.86,8.5762]
[1641219815373,9.47528987,174.96,174.86,8.5762]
[1641219815570,9.47528987,174.96,174.81,8.1]
[1641219815773,9.47528987,174.96,174.82,2.67342856]
[1641219815974,18.05048987,174.96,174.82,2.67342856]
[1641219816371,8.1,174.95,174.82,2.67342856]
[1641219816571,8.36,174.95,174.82,2.67342856]
[1641219816772,10.4806621,174.95,174.82,2.67342856]
[1641219817172,2.78883957,174.88,174.82,2.67342856]
[1641219818276,2.78883957,174.88,174.82,2.93342856]
[1641219819375,2.78883957,174.88,174.82,11.51192856]
[1641219819774,2.78883957,174.88,174.82,0.26]
[1641219819977,2.78883957,174.88,174.79,2.867]
[1641219820679,11.36793957,174.88,174.8,8.5792]
[1641219820878,11.62793957,174.88,174.78,83.57622821]
[1641219822276,1.2216,174.87,174.78,92.15662821]
[1641219822477,8.5808,174.85,174.78,92.15662821]
[1641219823278,8.5808,174.85,174.78,92.41662821]
[1641219826485,1.2216,174.87,174.78,92.41662821]
[1641219826684,1.2216,174.87,174.78,93.84332189]
[1641219828087,76.3271,174.89,174.78,93.84332189]
[1641219828288,2.67009224,174.9,174.78,102.82287737]
[1641219828488,2.67009224,174.9,174.78,111.6552466]
[1641219829091,2.67009224,174.9,174.84,8.576]
[1641219829293,2.67009224,174.9,174.85,3.05314544]
[1641219829490,2.67009224,174.9,174.85,3.31314544]
[1641219829692,1.2228,174.93,174.85,3.31314544]
[1641219829892,72.829,174.95,174.85,4.73983912]
[1641219830193,72.829,174.95,174.89,8.5751]
[1641219830396,1.2199,174.95,174.89,8.5751]
[1641219830594,3.48013186,174.95,174.89,0.26]
[1641219830792,1.2199,174.95,174.89,0.26]
[1641219830993,1.2199,174.95,174.87,8.36]
[1641219831619,1.2199,174.95,174.89,8.5751]
[1641219831820,2.45550125,174.95,174.89,8.5751]
[1641219832021,2.45550125,174.95,174.89,8.8351]
[1641219852982,2.45550125,174.95,174.89,8.5751]
[1641219854383,2.45550125,174.95,174.89,8.8351]
[1641219862891,11.03110125,174.95,174.89,0.26]
[1641219863091,11.03110125,174.95,174.88,10.1634]
[1641219863390,11.03110125,174.95,174.85,81.30519368]
[1641219863591,11.29110125,174.95,174.83,9.3133]
[1641219863791,8.5783,174.9,174.83,9.7912]
[1641219863991,8.5783,174.9,174.81,1.3252]
[1641219864394,2.43207441,174.89,174.82,2.19618417]
[1641219864793,3.69427441,174.89,174.82,2.19618417]
[1641219864992,3.69427441,174.89,174.82,11.03438417]
[1641219865192,12.27277441,174.89,174.82,11.03438417]
[1641219865993,12.27277441,174.89,174.82,2.19618417]
[1641219867294,12.27277441,174.89,174.82,2.45618417]
[1641219868695,12.27277441,174.89,174.82,11.03458417]
[1641219869097,12.27277441,174.89,174.82,2.45618417]
[1641219870803,12.27277441,174.89,174.82,0.26]
[1641219871003,12.27277441,174.89,174.81,10.1641]
[1641219871604,12.27277441,174.89,174.81,1.5852]
[1641219872303,12.27277441,174.89,174.81,3.9235263]
[1641219876726,12.27277441,174.89,174.81,12.5023263]
[1641219880028,12.27277441,174.89,174.81,3.9235263]
[1641219886234,12.27277441,174.89,174.81,12.5023263]
[1641219888940,11.94368141,174.89,174.81,12.5023263]
[1641219890842,9.8407,174.89,174.81,12.5023263]
[1641219891048,1.2622,174.89,174.82,8.1]
[1641219891443,1.2622,174.89,174.83,1.42669368]
[1641219891644,1.2622,174.89,174.83,9.52669368]
[1641219891845,4.20146393,174.89,174.83,9.78669368]
[1641219892042,4.20146393,174.89,174.84,2.67852806]
[1641219892542,1.2622,174.89,174.84,2.93852806]
[1641219893546,1.2622,174.89,174.84,11.51592806]
[1641219895582,8.5718,174.92,174.84,19.61592806]
[1641219895780,8.5718,174.92,174.84,21.04262174]
[1641219896383,8.5718,174.92,174.84,22.33752174]
[1641219897983,11.40716767,174.92,174.84,22.33752174]
[1641219898882,11.40716767,174.92,174.84,22.07752174]
[1641219899283,11.40716767,174.92,174.84,20.65082806]
[1641219899984,11.40716767,174.92,174.84,20.91082806]
[1641219901392,2.83536767,174.92,174.84,20.65082806]
[1641219902685,2.83536767,174.92,174.84,20.91082806]
[1641219903486,11.41256767,174.92,174.84,20.91082806]
[1641219905087,2.83536767,174.92,174.84,20.91082806]
[1641219905894,2.83536767,174.92,174.84,22.33752174]
[1641219907093,2.83536767,174.92,174.84,19.65899368]
[1641219907300,2.83536767,174.92,174.84,17.9723]
[1641219907494,2.83536767,174.92,174.84,8.1]
[1641219907894,3.09536767,174.92,174.84,8.1]
[1641219908396,2.83536767,174.92,174.85,2.7391448]
[1641219909094,2.83536767,174.92,174.85,2.9991448]
[1641219909494,11.67256767,174.92,174.85,2.9991448]
[1641219909694,11.67256767,174.92,174.85,0.26]
[1641219909994,11.67256767,174.92,174.84,8.36]
[1641219910398,11.41256767,174.92,174.84,8.36]
[1641219910798,11.41256767,174.92,174.84,3.29829158]
[1641219911003,11.67256767,174.92,174.84,3.29829158]
[1641219911200,11.41256767,174.92,174.84,3.29829158]
[1641219912000,12.17256767,174.92,174.84,3.29829158]
[1641219912202,11.67256767,174.92,174.84,3.29829158]
[1641219914330,11.41256767,174.92,174.84,3.29829158]
[1641219914836,11.41256767,174.92,174.84,11.39829158]
[1641219916433,11.41256767,174.92,174.84,19.97549158]
[1641219919236,11.41256767,174.92,174.84,11.13829158]
[1641219920637,11.41256767,174.92,174.84,4.51359158]
[1641219920840,11.41256767,174.92,174.84,13.09079158]
[1641219925448,11.41256767,174.92,174.84,4.51359158]
[1641219926046,11.41256767,174.92,174.84,1.4753]
[1641219927547,11.41256767,174.92,174.84,1.2153]
[1641219928948,11.41256767,174.92,174.84,1.4753]
[1641219929150,11.41256767,174.92,174.84,1.2153]
[1641219929347,11.41256767,174.92,174.84,1.4753]
[1641219929548,11.41256767,174.92,174.84,12.30406025]
[1641219930547,11.41256767,174.92,174.84,10.0525]
[1641219934256,8.5772,174.92,174.84,10.0525]
[1641219934459,2.85801625,174.97,174.84,19.57919368]
[1641219934654,1.61981625,174.97,174.84,19.57919368]
[1641219935255,2.60358332,174.96,174.84,19.57919368]
[1641219936859,11.17878332,174.96,174.84,19.57919368]
[1641219938861,11.43878332,174.96,174.84,19.57919368]
[1641219939061,11.17878332,174.96,174.84,19.57919368]
[1641219939262,11.43878332,174.96,174.84,19.57919368]
[1641219939463,8.5766,174.94,174.84,19.57919368]
[1641219939760,2.75389632,174.93,174.84,19.57919368]
[1641219940182,3.96749632,174.93,174.84,19.57919368]
[1641219941884,12.54429632,174.93,174.84,19.57919368]
[1641219943786,12.54429632,174.93,174.84,9.52669368]
[1641219943986,12.54429632,174.93,174.81,85.4979]
[1641219943987,12.80429632,174.93,174.81,85.4979]
[1641219944188,13.30429632,174.93,174.81,85.4979]
[1641219944591,12.80429632,174.93,174.81,85.4979]
[1641219944787,12.80429632,174.93,174.82,2.6339551]
[1641219944988,12.80429632,174.93,174.82,2.8939551]
[1641219947489,12.54429632,174.93,174.82,2.8939551]
[1641219947692,12.54429632,174.93,174.83,8.1]
[1641219948090,12.54429632,174.93,174.83,8.36]
[1641219948489,12.54429632,174.93,174.84,1.2131]
[1641219948689,12.54429632,174.93,174.85,2.58196207]
[1641219949090,12.54429632,174.93,174.85,2.84196207]
[1641219951095,12.54429632,174.93,174.85,2.58196207]
[1641219951295,13.30429632,174.93,174.85,2.58196207]
[1641219952395,12.80429632,174.93,174.85,2.84196207]
[1641219956600,12.80429632,174.93,174.85,2.58196207]
[1641219956805,13.30429632,174.93,174.85,2.58196207]
[1641219958000,13.30429632,174.93,174.85,2.84196207]
[1641219959401,14.73099,174.93,174.85,2.84196207]
[1641219959602,14.73099,174.93,174.85,2.58196207]
[1641219959805,13.30429632,174.93,174.85,2.58196207]
[1641219960606,13.30429632,174.93,174.82,9.3953]
[1641219961003,13.04429632,174.93,174.82,9.6553]
[1641219961604,13.04429632,174.93,174.83,3.02564669]
[1641219962002,13.04429632,174.93,174.83,3.28564669]
[1641219962504,13.30429632,174.93,174.83,3.28564669]
[1641219964908,13.04429632,174.93,174.83,3.28564669]
[1641219965111,12.54429632,174.93,174.83,3.28564669]
[1641219965810,12.54429632,174.93,174.84,9.3854]
[1641219966009,12.54429632,174.93,174.84,9.6454]
[1641219966211,3.96749632,174.93,174.84,9.6454]
[1641219967112,3.96749632,174.93,174.86,8.576]
[1641219967513,3.96749632,174.93,174.86,8.836]
[1641219967912,3.96749632,174.93,174.86,11.46802854]
[1641219970717,2.75389632,174.93,174.86,11.46802854]
[1641219972117,2.75389632,174.93,174.86,8.836]
[1641219974138,2.75389632,174.93,174.86,11.18134403]
[1641219976047,2.75389632,174.93,174.86,8.576]
[1641219977343,2.75389632,174.93,174.86,8.836]
[1641219981750,2.75389632,174.93,174.87,11.29396565]
[1641219982149,2.75389632,174.93,174.87,11.55396565]
[1641219984454,2.75389632,174.93,174.87,8.8359]
[1641219989959,2.75389632,174.93,174.88,2.1557006]
[1641219990359,2.75389632,174.93,174.88,2.4157006]
[1641219991461,2.75389632,174.93,174.91,0.69149884]
[1641219991861,3.0321,174.92,174.91,0.69149884]
[1641219996369,2.75389632,174.93,174.91,0.69149884]
[1641219996876,2.75389632,174.93,174.91,3.72369879]
[1641219997069,2.75389632,174.93,174.91,3.98369879]
[1641220001001,8.5757,174.95,174.91,3.98369879]
[1641220001402,1.3309,174.96,174.91,3.98369879]
[1641220001601,1.61981625,174.99,174.91,3.98369879]
[1641220001803,1.61981625,175.01,174.91,3.98369879]
[1641220002001,2.97408945,174.99,174.91,3.29219995]
[1641220002202,2.97408945,174.99,174.91,14.74849516]
[1641220002401,4.21388945,174.99,174.91,14.74849516]
[1641220003200,12.78748945,174.99,174.91,14.74849516]
[1641220003603,12.78748945,174.99,174.91,15.96789516]
[1641220009005,4.21388945,174.99,174.91,15.96789516]
[1641220010007,4.71388945,174.99,174.91,4.25159995]
[1641220010209,13.28748945,174.99,174.91,1.2194]
[1641220010510,13.28748945,174.99,174.87,77.4473]
[1641220010708,13.28748945,174.99,174.87,85.5473]
[1641220010909,13.28748945,174.99,174.88,3.54337483]
[1641220011308,13.28748945,174.99,174.88,12.11867483]
[1641220011509,13.28748945,174.99,174.88,12.37867483]
[1641220015111,12.78748945,174.99,174.88,12.37867483]
[1641220015511,13.28748945,174.99,174.88,12.37867483]
[1641220017417,13.28748945,174.99,174.88,12.11867483]
[1641220017618,13.54748945,174.99,174.88,12.11867483]
[1641220018818,13.28748945,174.99,174.88,12.37867483]
[1641220019416,13.54748945,174.99,174.88,12.37867483]
[1641220019916,13.28748945,174.99,174.88,12.37867483]
[1641220021219,13.28748945,174.99,174.88,12.11867483]
[1641220021425,13.54748945,174.99,174.88,3.54337483]
[1641220022522,13.54748945,174.99,174.88,3.80337483]
[1641220031356,12.78748945,174.99,174.88,3.80337483]
[1641220031558,4.21388945,174.99,174.89,8.1]
[1641220031958,4.21388945,174.99,174.91,0.69149884]
[1641220032156,4.21388945,174.99,174.92,8.1]
[1641220032561,4.21388945,174.99,174.92,8.36]
[1641220033557,4.21388945,174.99,174.94,8.5724]
[1641220033957,4.21388945,174.99,174.94,0.26]
[1641220034561,4.21388945,174.99,174.92,0.26]
[1641220034958,4.21388945,174.99,174.91,3.19808158]
[1641220035159,4.21388945,174.99,174.92,8.5734]
[1641220035560,4.21388945,174.99,174.92,8.8334]
[1641220036362,4.21388945,174.99,174.93,8.1]
[1641220036565,4.21388945,174.99,174.93,16.9326]
[1641220039567,2.97408945,174.99,174.93,16.9326]
[1641220042171,94.0,175.0,174.93,16.9326]
[1641220043175,2.97824268,174.99,174.93,16.9326]
[1641220043772,94.0,175.0,174.93,16.9326]
[1641220044772,2.55767114,174.99,174.93,16.9326]
[1641220047473,2.55767114,174.99,174.93,16.6726]
[1641220047677,2.55767114,174.99,174.93,8.5726]
[1641220047876,2.55767114,174.99,174.91,0.69149884]
[1641220048075,2.81767114,174.99,174.91,0.69149884]
[1641220048274,3.31767114,174.99,174.91,0.69149884]
[1641220048674,1.2187,174.98,174.91,3.54577685]
[1641220048875,8.5751,174.96,174.91,3.54577685]
[1641220049479,8.5751,174.96,174.91,3.80577685]
[1641220051476,1.57972924,174.99,174.91,3.80577685]
[1641220052879,8.5742,174.98,174.91,12.37977685]
[1641220054582,8.5742,174.98,174.91,3.80577685]
[1641220055184,10.15342924,174.99,174.91,3.80577685]
[1641220055386,10.15342924,174.99,174.92,1.2419]
[1641220055584,10.15342924,174.99,174.92,1.5019]
[1641220057586,1.3113,175.01,174.92,15.5043]
[1641220057786,72.866,175.03,174.93,8.1]
[1641220057990,74.1339,175.03,174.93,8.36]
[1641220058586,2.89894216,175.02,174.94,2.15798745]
[1641220058987,2.89894216,175.02,174.94,2.41798745]
[1641220059187,74.1339,175.03,174.94,3.69128745]
[1641220060409,76.63826791,175.03,174.94,3.69128745]
[1641220061216,76.63826791,175.03,174.97,8.5707]
[1641220061412,3.77226791,175.03,174.97,11.61680651]
[1641220061611,3.77226791,175.03,175.01,0.69149884]
[1641220061813,3.0321,175.02,175.01,0.69149884]
[1641220062214,3.77226791,175.03,175.01,0.69149884]
[1641220063223,3.77226791,175.03,175.01,3.72369879]
[1641220063420,2.50436791,175.03,175.01,3.98369879]
[1641220064818,8.5711,175.05,175.01,3.98369879]
[1641220065017,8.5711,175.05,175.01,0.95149884]
[1641220065218,8.5711,175.05,175.01,0.69149884]
[1641220066221,2.36905814,175.04,175.01,0.69149884]
[1641220066821,3.0321,175.03,175.01,0.69149884]
[1641220067621,2.36905814,175.04,175.01,0.69149884]
[1641220068623,2.36905814,175.04,175.02,3.03219995]
[1641220068825,2.36905814,175.04,175.01,0.69149884]
[1641220070327,2.36905814,175.04,175.02,3.03219995]
[1641220071030,2.36905814,175.04,175.02,3.29219995]
[1641220071828,2.36905814,175.04,175.02,3.03219995]
[1641220072027,2.36905814,175.04,175.02,3.29219995]
[1641220072631,2.36905814,175.04,175.02,3.03219995]
[1641220073832,5.40115814,175.04,175.02,0.26]
[1641220074033,13.97235814,175.04,174.98,1.5892]
[1641220077038,13.97235814,175.04,174.98,1.3292]
[1641220077239,13.97235814,175.04,174.96,8.5715]
[1641220077439,14.23235814,175.04,174.96,8.1]
[1641220077638,14.23235814,175.04,174.95,1.3248]
[1641220078238,13.97235814,175.04,174.95,3.57272917]
[1641220078440,13.97235814,175.04,174.95,3.83272917]
[1641220078667,14.23235814,175.04,174.95,3.83272917]
[1641220078842,13.97235814,175.04,174.95,3.83272917]
[1641220079039,14.23235814,175.04,174.95,3.83272917]
[1641220079840,13.97235814,175.04,174.95,3.83272917]
[1641220080242,14.23235814,175.04,174.95,3.83272917]
[1641220080844,13.97235814,175.04,174.95,3.83272917]
[1641220081044,14.23235814,175.04,174.95,3.83272917]
[1641220081245,13.97235814,175.04,174.95,12.40472917]
[1641220082046,11.6033,175.04,174.95,12.40472917]
[1641220082246,3.0321,175.04,174.96,8.1]
[1641220082455,3.0321,175.04,175.0,8.5693]
[1641220082847,3.0321,175.04,175.0,8.8293]
[1641220083046,3.0321,175.04,175.01,2.71089867]
[1641220083446,2.32846234,175.07,175.02,11.60069995]
[1641220083847,2.32846234,175.07,175.02,11.86069995]
[1641220087274,2.32846234,175.07,175.02,11.60069995]
[1641220088175,10.89816234,175.07,175.02,3.03219995]
[1641220089375,10.89816234,175.07,175.02,3.29219995]
[1641220089974,2.32846234,175.07,175.02,11.86119995]
[1641220092580,2.32846234,175.07,175.02,3.03219995]
[1641220093181,2.32846234,175.07,174.95,8.1]
[1641220093382,2.58846234,175.07,174.95,9.3782]
[1641220093582,2.58846234,175.07,174.96,2.64969361]
[1641220093982,1.2758,175.06,174.96,2.64969361]
[1641220094385,2.34857356,175.04,174.99,8.5703]
[1641220094584,2.34857356,175.04,174.99,8.8303]
[1641220095587,10.91977356,175.04,174.99,0.26]
[1641220095984,10.91977356,175.04,174.97,1.4967]
[1641220096185,10.91977356,175.04,174.97,1.2367]
[1641220096384,10.91977356,175.04,174.97,1.4967]
[1641220097385,10.91977356,175.04,174.97,10.0683]
[1641220098587,10.91977356,175.04,174.96,8.5719]
[1641220098786,11.17977356,175.04,174.93,76.8856]
[1641220098985,11.17977356,175.04,174.94,72.6579]
[1641220099187,11.17977356,175.04,174.91,8.1]
[1641220099188,11.67977356,175.04,174.91,8.1]
[1641220099388,1.2691,175.03,174.89,1.2406]
[1641220099686,1.5291,175.03,174.9,2.53276557]
[1641220099886,2.0291,175.03,174.9,2.53276557]
[1641220100489,2.32846234,175.01,174.9,2.53276557]
[1641220100694,8.5753,174.96,174.9,2.53276557]
[1641220101513,7.88380116,174.96,174.9,2.53276557]
[1641220102715,28.5858,175.0,174.9,2.53276557]
[1641220102716,1.2212,175.02,174.9,2.53276557]
[1641220102914,1.7212,175.02,174.9,10.63276557]
[1641220103115,1.2212,175.02,174.9,10.63276557]
[1641220103514,1.2212,175.02,174.9,12.31945925]
[1641220103719,3.49610928,175.02,174.9,12.31945925]
[1641220104116,3.49610928,175.02,174.91,1.2402]
[1641220104316,8.5727,175.01,174.95,8.5726]
[1641220104520,8.5727,175.01,174.95,11.33169318]
[1641220104931,2.27490928,175.02,174.95,11.33169318]
[1641220105937,76.882,175.08,174.95,11.33169318]
[1641220106139,8.5708,175.05,174.98,8.5708]
[1641220106540,8.5708,175.05,174.98,8.8308]
[1641220107141,2.87105646,175.04,174.98,11.53578217]
[1641220110146,2.87105646,175.04,174.98,8.8308]
[1641220112144,8.5708,175.05,174.99,2.51616693]
[1641220112349,1.3171,175.08,175.0,8.57]
[1641220112546,1.5771,175.08,175.0,8.83]
[1641220112948,1.3171,175.08,175.0,8.83]
[1641220113148,8.5693,175.08,175.0,8.83]
[1641220113348,2.70644599,175.07,175.0,8.83]
[1641220119052,2.70644599,175.07,175.0,10.0458]
[1641220119955,8.5683,175.1,175.0,10.0458]
[1641220120754,102.5683,175.1,175.0,10.0458]
[1641220120955,2.40825016,175.09,175.0,10.0458]
[1641220121957,102.5683,175.1,175.0,10.0458]
[1641220122157,102.5683,175.1,175.0,14.9438]
[1641220123059,2.99315631,175.09,175.0,14.9438]
[1641220123959,4.30905631,175.09,175.0,9.7858]
[1641220124759,12.87795631,175.09,175.0,9.7858]
[1641220125860,12.87795631,175.09,175.0,10.0458]
[1641220132969,9.8848,175.09,175.0,10.0458]
[1641220133170,9.8848,175.09,175.0,19.57249368]
[1641220133171,1.3159,175.09,175.0,19.57249368]
[1641220134270,3.76736696,175.09,175.0,19.57249368]
[1641220138376,3.76736696,175.09,175.0,18.1458]
[1641220139898,3.76736696,175.09,175.0,19.57249368]
[1641220140498,3.76736696,175.09,175.0,18.1458]
[1641220141400,3.76736696,175.09,175.01,1.42669368]
[1641220141599,3.76736696,175.09,175.05,8.5671]
[1641220141799,2.45146696,175.09,175.05,8.5671]
[1641220142000,2.45146696,175.09,175.05,8.8271]
[1641220146805,2.45146696,175.09,175.05,8.5671]
[1641220147007,2.45146696,175.09,175.03,9.8171]
[1641220147208,2.45146696,175.09,174.98,1.2947]
[1641220147407,2.45146696,175.09,175.0,1.261]
[1641220147906,1.2703,175.08,175.0,1.261]
[1641220148106,2.22556894,175.06,175.01,8.5694]
[1641220148511,2.22556894,175.06,175.01,8.8294]
[1641220151016,2.22556894,175.06,175.01,11.57093098]
[1641220152312,2.22556894,175.06,175.01,8.8294]
[1641220153114,2.22556894,175.06,175.01,0.26]
[1641220153315,10.79576894,175.06,175.0,9.831]
[1641220153520,10.79576894,175.06,175.0,1.261]
[1641220154516,10.79576894,175.06,175.0,1.521]
[1641220155515,10.79576894,175.06,174.99,8.5704]
[1641220155717,10.79576894,175.06,174.98,85.0926]
[1641220155917,11.05576894,175.06,174.98,85.0926]
[1641220156322,11.05576894,175.06,174.98,86.3351]
[1641220156520,11.05576894,175.06,174.99,2.43477519]
[1641220156720,10.79576894,175.06,174.99,2.43477519]
[1641220156920,10.79576894,175.06,174.99,11.26517519]
[1641220157121,2.22556894,175.06,174.99,11.26517519]
[1641220159421,10.79586894,175.06,174.99,11.26517519]
[1641220160221,1.2703,175.08,174.99,11.26517519]
[1641220161325,3.54809079,175.08,174.99,11.26517519]
[1641220161522,12.11739079,175.08,174.99,11.26517519]
[1641220161723,12.11739079,175.08,175.0,1.2543]
[1641220161922,12.11739079,175.08,175.0,9.8239]
[1641220162123,12.11739079,175.08,175.0,10.0839]
[1641220164230,12.11739079,175.08,175.0,1.5143]
[1641220164828,12.61739079,175.08,175.0,1.5143]
[1641220165652,12.11739079,175.08,175.0,1.5143]
[1641220167054,12.11739079,175.08,175.0,10.084]
[1641220167654,10.84709079,175.08,175.0,10.084]
[1641220167855,2.27779079,175.08,175.0,10.084]
[1641220172161,3.54049079,175.08,175.0,10.084]
[1641220173464,12.10969079,175.08,175.0,10.084]
[1641220175967,12.60969079,175.08,175.0,10.084]
[1641220176230,12.60969079,175.08,175.0,9.824]
[1641220176568,12.10969079,175.08,175.0,9.824]
[1641220176773,8.5692,175.08,175.0,9.824]
[1641220176968,8.5688,175.09,175.0,9.824]
[1641220177368,8.5688,175.09,175.0,10.084]
[1641220177568,8.5688,175.09,175.0,9.824]
[1641220177969,2.84684237,175.08,175.0,9.824]
[1641220178170,11.41634237,175.08,175.0,9.824]
[1641220178771,8.5695,175.08,175.0,9.824]
[1641220178972,8.5695,175.08,175.0,10.084]
[1641220179473,77.33590993,175.14,175.0,10.084]
[1641220179674,1.61981625,175.14,175.01,9.52669368]
[1641220179874,1.61981625,175.14,175.07,8.5648]
[1641220180075,1.61981625,175.14,175.08,2.89860676]
[1641220180476,1.61981625,175.14,175.08,3.15860676]
[1641220181073,554.16389241,175.16,175.09,1.42669368]
[1641220181274,554.16389241,175.16,175.12,8.5641]
[1641220181474,551.36871162,175.16,175.12,8.8241]
[1641220182076,87.0756,175.2,175.12,8.8241]
[1641220182475,2.64854926,175.18,175.12,8.8241]
[1641220183280,2.64854926,175.18,175.12,8.5641]
[1641220184601,2.64854926,175.18,175.12,8.8241]
[1641220184801,2.64854926,175.18,175.12,11.15402422]
[1641220186408,2.64854926,175.18,175.12,8.8241]
[1641220189110,2.64854926,175.18,175.12,8.5641]
[1641220189310,2.90854926,175.18,175.12,8.5641]
[1641220190018,2.90854926,175.18,175.09,76.02042988]
[1641220190216,2.64854926,175.18,175.11,8.565]
[1641220191118,2.64854926,175.18,175.11,8.825]
[1641220192815,2.90854926,175.18,175.11,8.565]
[1641220193016,11.47354926,175.18,175.11,8.565]
[1641220193619,11.47354926,175.18,175.1,8.5656]
[1641220194121,11.47354926,175.18,175.1,8.8256]
[1641220195426,11.21354926,175.18,175.1,8.8256]
[1641220196726,11.47354926,175.18,175.1,0.26]
[1641220197128,11.47354926,175.18,175.09,80.9468]
[1641220198130,11.21354926,175.18,175.09,80.9468]
[1641220198528,11.47354926,175.18,175.09,80.9468]
[1641220199831,11.47354926,175.18,175.09,80.6868]
[1641220200334,11.21354926,175.18,175.09,80.6868]
[1641220201035,11.21354926,175.18,175.09,82.0235]
[1641220201235,11.21354926,175.18,175.09,82.2835]
[1641220202958,11.47354926,175.18,175.09,82.2835]
[1641220203559,11.21354926,175.18,175.09,82.2835]
[1641220206062,8.565,175.18,175.09,82.2835]
[1641220206261,77.2592,175.2,175.09,83.71019368]
[1641220206461,10.6273,175.23,175.09,90.02019368]
[1641220206661,10.6273,175.23,175.09,177.48129368]
[1641220208465,19.1895,175.23,175.09,177.48129368]
[1641220210975,19.4495,175.23,175.09,177.48129368]
[1641220211775,19.1895,175.23,175.09,177.48129368]
[1641220213775,19.1895,175.23,175.09,177.50129368]
[1641220215477,19.4495,175.23,175.09,177.50129368]